fUSD/lending_fUSD_20240727
["ID","MTS","AMOUNT","RATE_DAILY","PERIOD"]
[333415509,1722118239198,-1010.46,0.0001099,2]
[333415510,1722118239208,-1010.46,0.0001099,2]
[333415511,1722118239218,-211.22,0.0001099,2]
[333415512,1722118239227,-272.91857153,0.00010996,2]
[333415513,1722118239236,-193.55642863,0.00010996,2]
[333415514,1722118239245,-191.85217756,0.00010998,2]
[333415515,1722118239254,-800.0,0.00010998,3]
[333415516,1722118239264,-332.665,0.00010999,2]
[333415517,1722118239273,-500.0,0.00010999,2]
[333415518,1722118239282,-869.42,0.00010999,2]
[333415519,1722118239291,-265.83193608,0.00010999,2]
[333415520,1722118239301,-528.0,0.00011,2]
[333415521,1722118239310,-36735.67349648,0.00011,2]
[333415522,1722118239322,-3597.56620416,0.00011,2]
[333415523,1722118239332,-4414.93242347,0.00011,2]
[333415524,1722118239345,-28445.57101361,0.00011,2]
[333415525,1722118239357,-300.11965555,0.00011,2]
[333415526,1722118239367,-1522.57839701,0.00011,2]
[333415527,1722118239378,-65213.74985713,0.00011,2]
[333415528,1722118239389,-397.56493068,0.00011,2]
[333415529,1722118239400,-2883.84825415,0.00011,2]
[333415530,1722118239411,-579.46660205,0.00011,2]
[333415531,1722118239422,-4113.21141485,0.00011,2]
[333415539,1722118240555,-439.10667098,0.00011,2]
[333415540,1722118240566,-620.253173,0.00011,2]
[333415541,1722118240577,-2848.57941452,0.00011,2]
[333415542,1722118240695,-35138.56060247,0.00011,2]
[333415543,1722118240705,-27873.73339276,0.00011,2]
[333415544,1722118240716,-502.62768369,0.00011,2]
[333415545,1722118240741,-500.0,0.00011,2]
[333415546,1722118240752,-1107.68259837,0.00011,2]
[333415547,1722118240895,-1023.25,0.00011,2]
[333415549,1722118240908,-313.637495,0.00011,2]
[333415718,1722118243352,-3169.086293,0.00010426,2]
[333415725,1722118243405,-2804.45,0.00010426,2]
[333415727,1722118243417,-4026.463707,0.00010426,2]
[333415729,1722118243427,-44222.63465478,0.00011,2]
[333415733,1722118243462,-163127.99750028,0.00011,2]
[333415781,1722118246225,-773.59924237,0.00010426,2]
[333415782,1722118246235,-6296.04391332,0.00011,2]
[333415783,1722118246403,-380.34541189,0.00011,2]
[333415854,1722118247431,-730.27883011,0.00011,2]
[333415856,1722118247442,-332.83,0.00011,2]
[333415858,1722118247453,-6317.86258978,0.00011,2]
[333415860,1722118247464,-3001.3,0.00011,2]
[333415863,1722118247475,-289430.25060732,0.00011,2]
[333415865,1722118247487,-1702.62345,0.00011,2]
[333415867,1722118247497,-692.70854884,0.00011,2]
[333415883,1722118325280,158.5,0.0001337,30]
[333415901,1722118835668,158.5,0.0001337,30]
[333415965,1722119432424,-1115.27,8.219e-05,2]
[333415966,1722119432434,-300.0,9.642e-05,2]
[333415967,1722119432444,-250.0,9.643e-05,2]
[333415968,1722119432453,-7741.43292885,9.643e-05,2]
[333415969,1722119432465,-554.28354,9.643e-05,2]
[333415970,1722119432563,-3065.28778418,9.643e-05,2]
[333415971,1722119432577,-2612.32441227,9.643e-05,2]
[333415972,1722119432589,-254.68592052,9.643e-05,2]
[333415973,1722119432600,-1816.47244228,9.643e-05,2]
[333415974,1722119432612,-1228.4729719,9.643e-05,2]
[333415975,1722119432621,-244.4970281,9.674e-05,2]
[333415976,1722119432633,-886.9229719,9.674e-05,2]
[333415977,1722119432642,-200.0,9.679e-05,2]
[333415978,1722119432652,-800.0,9.702e-05,2]
[333415979,1722119432662,-200.0,9.9e-05,3]
[333415980,1722119432671,-1462.51245167,0.0001,2]
[333415982,1722119432683,-764.60626949,0.0001,2]
[333415984,1722119432698,-348.35,0.0001,2]
[333415994,1722119438919,-1447.01639922,0.0001,2]
[333415995,1722119439046,-2976.27273711,0.0001,2]
[333415996,1722119439095,-1062.80286357,0.0001,2]
[333415997,1722119439109,-689.59,0.0001,2]
[333415998,1722119439254,-6646.92891776,0.0001,2]
[333415999,1722119439265,-500.0,0.0001,3]
[333416000,1722119439276,-1250.0,0.0001,2]
[333416001,1722119439288,-800.0,0.000101,3]
[333416002,1722119439300,-1100.0,0.000102,3]
[333416003,1722119439312,-1400.0,0.000103,3]
[333416004,1722119439324,-200.0,0.000104,3]
[333416005,1722119439335,-2629.45245742,0.00010426,2]
[333416006,1722119439346,-1115.27,0.00010458,2]
[333416007,1722119439360,-200.0,0.000105,3]
[333416008,1722119439371,-234.44,0.00010516,2]
[333416009,1722119439383,-234.44,0.00010516,2]
[333416010,1722119439394,-234.44,0.00010516,2]
[333416011,1722119439405,-234.44,0.00010516,2]
[333416012,1722119439417,-234.44,0.00010516,2]
[333416013,1722119439428,-234.44,0.00010516,2]
[333416014,1722119439439,-234.44,0.00010516,2]
[333416015,1722119439451,-106369.0,0.00010526,2]
[333416016,1722119439463,-1325.0862,0.00010572,2]
[333416017,1722119439476,-1810.27080819,0.0001059,2]
[333416018,1722119439487,-200.0,0.000106,3]
[333416019,1722119439499,-420.0,0.00010607,2]
[333416020,1722119439510,-10026.1118,0.000107,2]
[333416021,1722119439521,-200.0,0.000107,3]
[333416022,1722119439532,-234.44,0.00010789,2]
[333416024,1722119439543,-234.44,0.0001079,2]
[333416026,1722119439554,-153.68776239,0.00010799,2]
[333416027,1722119439565,-17008.7328,0.000108,2]
[333416029,1722119439576,-7500.0,0.000108,2]
[333416031,1722119439588,-3745.341,0.000108,2]
[333416033,1722119439599,-3010.4156,0.000108,2]
[333416035,1722119439610,-1100.0,0.000108,3]
[333416037,1722119439620,-175.23433125,0.000108,2]
[333416039,1722119439631,-154.62495716,0.000108,2]
[333416041,1722119439642,-175.23433122,0.00010833,2]
[333416043,1722119439653,-154.62495714,0.0001085,2]
[333416045,1722119439663,-175.23433122,0.00010867,2]
[333416047,1722119439675,-234.44,0.00010867,2]
[333416049,1722119439686,-4005.0,0.00010877,2]
[333416051,1722119439697,-31122.89319102,0.0001088,2]
[333416053,1722119439711,-517.37259023,0.0001088,2]
[333416113,1722119440509,-3292.62500001,0.0001088,2]
[333416114,1722119440634,-949.5000001,0.0001088,2]
[333416115,1722119440668,-734582.57050533,0.0001088,2]
[333416116,1722119440679,-200.0,0.00010889,2]
[333416117,1722119440691,-981.8160501,0.00010899,2]
[333416118,1722119440702,-981.81605003,0.00010899,2]
[333416119,1722119440713,-981.81605003,0.00010899,2]
[333416120,1722119440724,-981.81605003,0.00010899,2]
[333416121,1722119440736,-981.81605003,0.00010899,2]
[333416122,1722119440747,-981.81605003,0.00010899,2]
[333416123,1722119440758,-981.81605003,0.00010899,2]
[333416124,1722119440769,-981.81605003,0.00010899,2]
[333416125,1722119440780,-981.81605003,0.00010899,2]
[333416126,1722119440791,-16451.6145,0.000109,2]
[333416127,1722119440802,-174051.5994,0.000109,2]
[333416128,1722119440813,-2233.21503504,0.000109,2]
[333416129,1722119440824,-1000.0,0.000109,2]
[333416130,1722119440836,-650.352,0.000109,2]
[333416131,1722119440848,-247.952683,0.000109,2]
[333416133,1722119440859,-7000.0,0.000109,2]
[333416135,1722119440870,-349.55717461,0.000109,2]
[333416137,1722119440881,-981.81605003,0.000109,2]
[333416139,1722119440893,-175.23433122,0.000109,2]
[333416141,1722119440904,-214.25089341,0.000109,2]
[333416143,1722119440915,-1000.0,0.000109,2]
[333416145,1722119440927,-154.62495714,0.000109,2]
[333416147,1722119440939,-150.63975881,0.000109,2]
[333416149,1722119440950,-500.0,0.00010912,2]
[333416152,1722119440962,-800.0,0.00010914,2]
[333416154,1722119440973,-500.0,0.00010958,2]
[333416156,1722119440984,-500.0,0.00010958,2]
[333416158,1722119440995,-500.0,0.00010958,2]
[333416160,1722119441006,-621.41443663,0.00010958,2]
[333416162,1722119441018,-501.76885057,0.00010958,2]
[333416164,1722119441029,-500.0,0.00010958,2]
[333416167,1722119441041,-500.0,0.00010958,2]
[333416168,1722119441051,-497.90252718,0.00010958,2]
[333416170,1722119441063,-500.0,0.00010958,2]
[333416173,1722119441074,-500.0,0.00010958,2]
[333416175,1722119441085,-500.0,0.00010958,2]
[333416177,1722119441097,-398.3879088,0.00010958,2]
[333416179,1722119441108,-500.0,0.00010958,2]
[333416181,1722119441119,-500.0,0.00010958,2]
[333416183,1722119441131,-500.0,0.00010958,2]
[333416186,1722119441143,-500.0,0.00010958,2]
[333416188,1722119441154,-503.32586384,0.00010958,2]
[333416190,1722119441165,-500.0,0.00010958,2]
[333416192,1722119441180,-589.0167821,0.00010958,2]
[333416194,1722119441192,-510.22808668,0.00010958,2]
[333416196,1722119441204,-500.0,0.00010958,2]
[333416198,1722119441217,-502.22607303,0.00010958,2]
[333416200,1722119441228,-587.94281746,0.00010958,2]
[333416203,1722119441239,-500.0,0.00010958,2]
[333416205,1722119441254,-500.0,0.00010958,2]
[333416207,1722119441265,-500.0,0.00010958,2]
[333416208,1722119441274,-500.0,0.00010958,2]
[333416210,1722119441284,-500.0,0.00010958,2]
[333416212,1722119441293,-507.40961043,0.00010958,2]
[333416214,1722119441303,-500.0,0.00010958,2]
[333416216,1722119441312,-500.0,0.00010958,2]
[333416218,1722119441322,-500.0,0.00010958,2]
[333416220,1722119441332,-523.07674386,0.00010958,2]
[333416222,1722119441342,-500.0,0.00010958,2]
[333416249,1722119441626,-501.21119569,0.00010958,2]
[333416250,1722119441647,-500.0,0.00010958,2]
[333416251,1722119441661,-500.0,0.00010958,2]
[333416252,1722119441671,-504.02489628,0.00010958,2]
[333416253,1722119441681,-503.70719636,0.00010958,2]
[333416254,1722119441690,-500.0,0.00010958,2]
[333416255,1722119441699,-503.22882613,0.00010958,2]
[333416256,1722119441709,-539.36174794,0.00010958,2]
[333416257,1722119441719,-500.0,0.00010958,2]
[333416258,1722119441729,-500.0,0.00010958,2]
[333416259,1722119441739,-500.0,0.00010958,2]
[333416260,1722119441748,-501.52405235,0.00010958,2]
[333416261,1722119441758,-500.0,0.00010958,2]
[333416262,1722119441768,-500.0,0.00010958,2]
[333416263,1722119441777,-500.0,0.00010958,2]
[333416264,1722119441787,-505.42895352,0.00010958,2]
[333416265,1722119441796,-500.0,0.00010958,2]
[333416266,1722119441806,-524.43849503,0.00010958,2]
[333416267,1722119441815,-500.0,0.00010958,2]
[333416268,1722119441826,-500.0,0.00010958,2]
[333416269,1722119441835,-500.0,0.00010958,2]
[333416270,1722119441844,-500.0,0.00010958,2]
[333416271,1722119441854,-500.0,0.00010958,2]
[333416272,1722119441863,-500.0,0.00010958,2]
[333416273,1722119441873,-562.49,0.00010958,2]
[333416274,1722119441882,-500.0,0.00010958,2]
[333416275,1722119441891,-614.83,0.00010958,2]
[333416276,1722119441900,-500.0,0.00010958,2]
[333416277,1722119441909,-640.18411553,0.00010958,2]
[333416278,1722119441919,-500.0,0.00010958,2]
[333416279,1722119441928,-527.26,0.00010958,2]
[333416280,1722119441937,-500.0,0.00010958,2]
[333416281,1722119441946,-503.99294601,0.00010958,2]
[333416282,1722119441955,-504.14507711,0.00010958,2]
[333416283,1722119441965,-500.0,0.00010958,2]
[333416284,1722119441975,-500.0,0.00010958,2]
[333416285,1722119441985,-500.0,0.00010958,2]
[333416286,1722119441996,-455.26344838,0.00010958,2]
[333416287,1722119442006,-500.0,0.00010958,2]
[333416288,1722119442016,-500.0,0.00010958,2]
[333416289,1722119442026,-500.0,0.00010958,2]
[333416290,1722119442036,-506.19317908,0.00010958,2]
[333416291,1722119442046,-500.0,0.00010958,2]
[333416292,1722119442055,-500.0,0.00010958,2]
[333416293,1722119442065,-500.0,0.00010958,2]
[333416294,1722119442075,-500.0,0.00010958,2]
[333416295,1722119442085,-505.60583419,0.00010958,2]
[333416296,1722119442095,-500.0,0.00010958,2]
[333416297,1722119442104,-504.64395121,0.00010958,2]
[333416298,1722119442113,-504.88207152,0.00010958,2]
[333416299,1722119442123,-500.0,0.00010958,2]
[333416300,1722119442133,-501.96460827,0.00010958,2]
[333416301,1722119442143,-503.28675907,0.00010958,2]
[333416302,1722119442152,-500.0,0.00010958,2]
[333416303,1722119442162,-500.0,0.00010958,2]
[333416304,1722119442175,-500.0,0.00010958,2]
[333416305,1722119442185,-500.0,0.00010958,2]
[333416306,1722119442194,-620.44,0.00010958,2]
[333416307,1722119442205,-500.0,0.00010958,2]
[333416308,1722119442216,-500.0,0.00010958,2]
[333416309,1722119442226,-500.0,0.00010958,2]
[333416310,1722119442236,-500.0,0.00010958,2]
[333416311,1722119442247,-500.0,0.00010958,2]
[333416312,1722119442256,-500.0,0.00010958,2]
[333416313,1722119442266,-500.0,0.00010958,2]
[333416314,1722119442275,-500.0,0.00010958,2]
[333416315,1722119442285,-500.0,0.00010958,2]
[333416316,1722119442295,-500.0,0.00010958,2]
[333416317,1722119442304,-500.0,0.00010958,2]
[333416318,1722119442314,-500.0,0.00010958,2]
[333416319,1722119442324,-500.0,0.00010958,2]
[333416320,1722119442333,-500.0,0.00010958,2]
[333416321,1722119442342,-500.0,0.00010958,2]
[333416322,1722119442352,-500.0,0.00010958,2]
[333416323,1722119442362,-511.42960813,0.00010958,2]
[333416324,1722119442371,-500.0,0.00010958,2]
[333416325,1722119442382,-500.0,0.00010958,2]
[333416326,1722119442392,-500.0,0.00010958,2]
[333416327,1722119442402,-500.0,0.00010958,2]
[333416328,1722119442412,-500.0,0.00010958,2]
[333416329,1722119442421,-500.0,0.00010958,2]
[333416330,1722119442431,-504.4476852,0.00010958,2]
[333416331,1722119442445,-500.0,0.00010958,2]
[333416332,1722119442458,-500.0,0.00010958,2]
[333416333,1722119442468,-500.0,0.00010958,2]
[333416334,1722119442478,-526.35938103,0.00010958,2]
[333416335,1722119442488,-500.0,0.00010958,2]
[333416336,1722119442497,-500.0,0.00010958,2]
[333416337,1722119442507,-500.0,0.00010958,2]
[333416338,1722119442516,-588.03,0.00010958,2]
[333416339,1722119442526,-500.0,0.00010958,2]
[333416340,1722119442535,-500.0,0.00010958,2]
[333416341,1722119442545,-500.0,0.00010958,2]
[333416342,1722119442554,-500.0,0.00010958,2]
[333416343,1722119442564,-500.0,0.00010958,2]
[333416344,1722119442574,-500.0,0.00010958,2]
[333416345,1722119442584,-500.0,0.00010958,2]
[333416346,1722119442594,-500.0,0.00010958,2]
[333416347,1722119442606,-500.0,0.00010958,2]
[333416348,1722119442615,-500.0,0.00010958,2]
[333416349,1722119442624,-500.0,0.00010958,2]
[333416350,1722119442634,-500.0,0.00010958,2]
[333416351,1722119442643,-500.0,0.00010958,2]
[333416352,1722119442652,-500.0,0.00010958,2]
[333416353,1722119442661,-500.0,0.00010958,2]
[333416354,1722119442670,-500.0,0.00010958,2]
[333416355,1722119442679,-500.0,0.00010958,2]
[333416356,1722119442689,-500.0,0.00010958,2]
[333416357,1722119442698,-500.0,0.00010958,2]
[333416358,1722119442708,-500.0,0.00010958,2]
[333416359,1722119442717,-500.0,0.00010958,2]
[333416360,1722119442727,-500.0,0.00010958,2]
[333416361,1722119442736,-555.68208153,0.00010958,2]
[333416362,1722119442745,-552.02,0.00010958,2]
[333416363,1722119442755,-396.9248615,0.00010958,2]
[333416364,1722119442764,-500.0,0.00010958,2]
[333416365,1722119442773,-500.0,0.00010958,2]
[333416366,1722119442782,-500.0,0.00010958,2]
[333416367,1722119442791,-500.0,0.00010958,2]
[333416368,1722119442801,-500.0,0.00010958,2]
[333416369,1722119442810,-576.05,0.00010958,2]
[333416370,1722119442820,-500.0,0.00010958,2]
[333416371,1722119442832,-500.0,0.00010958,2]
[333416372,1722119442841,-500.0,0.00010958,2]
[333416373,1722119442850,-738.56,0.00010958,2]
[333416374,1722119442859,-500.0,0.00010958,2]
[333416375,1722119442869,-500.0,0.00010958,2]
[333416376,1722119442878,-500.0,0.00010958,2]
[333416377,1722119442888,-500.0,0.00010958,2]
[333416378,1722119442897,-500.0,0.00010958,2]
[333416379,1722119442907,-500.0,0.00010958,2]
[333416380,1722119442916,-500.0,0.00010958,2]
[333416381,1722119442926,-500.0,0.00010958,2]
[333416382,1722119442935,-500.0,0.00010958,2]
[333416383,1722119442944,-500.0,0.00010958,2]
[333416384,1722119442954,-500.0,0.00010958,2]
[333416385,1722119442963,-335.43400999,0.00010958,2]
[333416386,1722119442972,-500.0,0.00010958,2]
[333416387,1722119442982,-566.62,0.00010958,2]
[333416388,1722119442992,-500.0,0.00010958,2]
[333416389,1722119443001,-500.0,0.00010958,2]
[333416390,1722119443010,-500.0,0.00010958,2]
[333416391,1722119443019,-500.0,0.00010958,2]
[333416392,1722119443028,-500.0,0.00010958,2]
[333416393,1722119443038,-322.6,0.00010958,2]
[333416394,1722119443049,-500.0,0.00010958,2]
[333416395,1722119443059,-500.0,0.00010958,2]
[333416396,1722119443068,-504.95239398,0.00010958,2]
[333416397,1722119443080,-500.0,0.00010958,2]
[333416398,1722119443089,-500.0,0.00010958,2]
[333416399,1722119443098,-500.0,0.00010958,2]
[333416400,1722119443107,-500.0,0.00010958,2]
[333416401,1722119443118,-1024.22,0.00010958,2]
[333416402,1722119443127,-1024.22,0.00010958,2]
[333416403,1722119443136,-500.0,0.00010958,2]
[333416404,1722119443146,-500.0,0.00010958,2]
[333416405,1722119443155,-500.0,0.00010958,2]
[333416406,1722119443164,-500.0,0.00010958,2]
[333416407,1722119443178,-500.0,0.00010958,2]
[333416408,1722119443188,-500.0,0.00010958,2]
[333416409,1722119443197,-500.0,0.00010958,2]
[333416411,1722119443206,-500.0,0.00010958,2]
[333416413,1722119443217,-500.0,0.00010958,2]
[333416415,1722119443226,-497.52053079,0.00010958,2]
[333416416,1722119443236,-500.0,0.00010958,2]
[333416417,1722119443248,-538.43,0.00010958,2]
[333416418,1722119443257,-500.0,0.00010958,2]
[333416419,1722119443267,-500.0,0.00010958,2]
[333416420,1722119443277,-230.27883011,0.00010958,2]
[333416422,1722119443286,-505.88909566,0.00010958,2]
[333416423,1722119443295,-500.0,0.00010958,2]
[333416424,1722119443304,-500.0,0.00010958,2]
[333416425,1722119443314,-500.0,0.00010958,2]
[333416426,1722119443323,-500.0,0.00010958,2]
[333416427,1722119443333,-500.0,0.00010958,2]
[333416428,1722119443342,-500.0,0.00010958,2]
[333416429,1722119443351,-500.0,0.00010958,2]
[333416430,1722119443361,-500.0,0.00010958,2]
[333416431,1722119443370,-500.0,0.00010958,2]
[333416432,1722119443379,-500.0,0.00010958,2]
[333416433,1722119443388,-571.575646,0.00010958,2]
[333416434,1722119443397,-772.29,0.00010958,2]
[333416436,1722119443407,-500.0,0.00010958,2]
[333416437,1722119443416,-500.0,0.00010958,2]
[333416438,1722119443425,-500.0,0.00010958,2]
[333416439,1722119443435,-500.0,0.00010958,2]
[333416440,1722119443444,-500.0,0.00010958,2]
[333416441,1722119443454,-500.0,0.00010958,2]
[333416442,1722119443464,-450.78390013,0.00010958,2]
[333416443,1722119443473,-204.77169774,0.00010958,2]
[333416444,1722119443483,-500.0,0.00010958,2]
[333416445,1722119443492,-500.0,0.00010958,2]
[333416446,1722119443502,-500.0,0.00010958,2]
[333416447,1722119443511,-500.0,0.00010958,2]
[333416448,1722119443521,-502.57001717,0.00010958,2]
[333416449,1722119443531,-504.64260848,0.00010958,2]
[333416450,1722119443540,-500.0,0.00010958,2]
[333416451,1722119443549,-500.0,0.00010958,2]
[333416452,1722119443559,-500.0,0.00010958,2]
[333416453,1722119443568,-500.0,0.00010958,2]
[333416454,1722119443578,-500.0,0.00010958,2]
[333416455,1722119443587,-500.0,0.00010958,2]
[333416456,1722119443596,-500.0,0.00010958,2]
[333416457,1722119443606,-500.0,0.00010958,2]
[333416458,1722119443615,-500.0,0.00010958,2]
[333416459,1722119443624,-500.0,0.00010958,2]
[333416460,1722119443633,-500.0,0.00010958,2]
[333416461,1722119443643,-500.0,0.00010958,2]
[333416462,1722119443652,-500.0,0.00010958,2]
[333416463,1722119443661,-500.0,0.00010958,2]
[333416464,1722119443671,-641.38,0.00010958,2]
[333416465,1722119443680,-500.0,0.00010958,2]
[333416466,1722119443689,-500.0,0.00010958,2]
[333416467,1722119443698,-500.0,0.00010958,2]
[333416468,1722119443707,-502.19452652,0.00010958,2]
[333416469,1722119443716,-500.0,0.00010958,2]
[333416470,1722119443725,-500.0,0.00010958,2]
[333416471,1722119443734,-500.0,0.00010958,2]
[333416472,1722119443743,-500.0,0.00010958,2]
[333416473,1722119443752,-500.0,0.00010958,2]
[333416474,1722119443761,-500.0,0.00010958,2]
[333416475,1722119443770,-500.0,0.00010958,2]
[333416476,1722119443779,-500.0,0.00010958,2]
[333416477,1722119443788,-500.0,0.00010958,2]
[333416478,1722119443798,-500.0,0.00010958,2]
[333416479,1722119443807,-500.0,0.00010958,2]
[333416480,1722119443816,-500.0,0.00010958,2]
[333416481,1722119443826,-500.0,0.00010958,2]
[333416482,1722119443835,-500.0,0.00010958,2]
[333416483,1722119443845,-500.0,0.00010958,2]
[333416484,1722119443854,-500.0,0.00010958,2]
[333416485,1722119443863,-500.99574932,0.00010958,2]
[333416486,1722119443872,-588.43,0.00010958,2]
[333416487,1722119443881,-300.0,0.00010958,2]
[333416488,1722119443890,-500.0,0.00010958,2]
[333416489,1722119443899,-485.56,0.00010958,2]
[333416490,1722119443908,-500.0,0.00010958,2]
[333416491,1722119443917,-500.0,0.00010958,2]
[333416492,1722119443927,-500.0,0.00010958,2]
[333416493,1722119443936,-500.0,0.00010958,2]
[333416494,1722119443945,-500.0,0.00010958,2]
[333416495,1722119443955,-500.0,0.00010958,2]
[333416496,1722119443964,-500.0,0.00010958,2]
[333416497,1722119443973,-461.51,0.00010958,2]
[333416498,1722119443982,-500.0,0.00010958,2]
[333416499,1722119443992,-504.68297301,0.00010958,2]
[333416500,1722119444003,-500.0,0.00010958,2]
[333416501,1722119444012,-500.0,0.00010958,2]
[333416502,1722119444022,-500.0,0.00010958,2]
[333416503,1722119444031,-500.0,0.00010958,2]
[333416504,1722119444041,-325.95693694,0.00010958,2]
[333416505,1722119444050,-500.0,0.00010958,2]
[333416506,1722119444060,-500.0,0.00010958,2]
[333416507,1722119444070,-500.0,0.00010958,2]
[333416508,1722119444080,-500.0,0.00010958,2]
[333416509,1722119444089,-212.70928741,0.00010958,2]
[333416510,1722119444099,-505.39811498,0.00010958,2]
[333416511,1722119444108,-500.0,0.00010958,2]
[333416512,1722119444118,-500.0,0.00010958,2]
[333416513,1722119444128,-394.42127658,0.00010958,2]
[333416514,1722119444138,-500.0,0.00010958,2]
[333416515,1722119444147,-500.0,0.00010958,2]
[333416516,1722119444157,-500.0,0.00010958,2]
[333416517,1722119444168,-253.47874931,0.00010958,2]
[333416518,1722119444180,-502.80215745,0.00010958,2]
[333416519,1722119444189,-500.0,0.00010958,2]
[333416520,1722119444199,-500.0,0.00010958,2]
[333416521,1722119444208,-501.17379279,0.00010958,2]
[333416522,1722119444218,-500.0,0.00010958,2]
[333416523,1722119444228,-500.0,0.00010958,2]
[333416524,1722119444237,-500.0,0.00010958,2]
[333416525,1722119444248,-500.0,0.00010958,2]
[333416526,1722119444257,-500.0,0.00010958,2]
[333416527,1722119444267,-500.0,0.00010958,2]
[333416528,1722119444277,-500.0,0.00010958,2]
[333416529,1722119444286,-500.0,0.00010958,2]
[333416530,1722119444295,-500.0,0.00010958,2]
[333416531,1722119444305,-500.0,0.00010958,2]
[333416532,1722119444314,-500.0,0.00010958,2]
[333416533,1722119444324,-500.0,0.00010958,2]
[333416534,1722119444335,-500.0,0.00010958,2]
[333416535,1722119444345,-500.0,0.00010958,2]
[333416536,1722119444354,-646.11,0.00010958,2]
[333416537,1722119444363,-785.55,0.00010958,2]
[333416538,1722119444372,-500.0,0.00010958,2]
[333416539,1722119444382,-785.55,0.00010958,2]
[333416540,1722119444391,-500.0,0.00010958,2]
[333416541,1722119444401,-500.0,0.00010958,2]
[333416542,1722119444410,-500.0,0.00010958,2]
[333416543,1722119444420,-500.0,0.00010958,2]
[333416544,1722119444429,-500.0,0.00010958,2]
[333416545,1722119444439,-500.0,0.00010958,2]
[333416546,1722119444448,-500.0,0.00010958,2]
[333416547,1722119444458,-500.0,0.00010958,2]
[333416548,1722119444467,-500.0,0.00010958,2]
[333416549,1722119444477,-501.13120256,0.00010958,2]
[333416550,1722119444487,-500.0,0.00010958,2]
[333416552,1722119444499,-500.0,0.00010958,2]
[333416554,1722119444508,-500.0,0.00010958,2]
[333416556,1722119444518,-500.0,0.00010958,2]
[333416558,1722119444528,-500.0,0.00010958,2]
[333416560,1722119444538,-500.0,0.00010958,2]
[333416562,1722119444547,-500.0,0.00010958,2]
[333416564,1722119444557,-504.42149987,0.00010958,2]
[333416566,1722119444566,-500.0,0.00010958,2]
[333416568,1722119444575,-500.0,0.00010958,2]
[333416570,1722119444585,-500.0,0.00010958,2]
[333416571,1722119444595,-500.0,0.00010958,2]
[333416572,1722119444604,-500.0,0.00010958,2]
[333416573,1722119444614,-500.0,0.00010958,2]
[333416574,1722119444623,-500.0,0.00010958,2]
[333416575,1722119444632,-500.0,0.00010958,2]
[333416576,1722119444642,-500.0,0.00010958,2]
[333416577,1722119444651,-500.0,0.00010958,2]
[333416578,1722119444661,-500.0,0.00010958,2]
[333416579,1722119444670,-500.0,0.00010958,2]
[333416580,1722119444679,-500.0,0.00010958,2]
[333416581,1722119444688,-500.0,0.00010958,2]
[333416582,1722119444698,-500.0,0.00010958,2]
[333416583,1722119444707,-500.0,0.00010958,2]
[333416585,1722119444716,-500.0,0.00010958,2]
[333416587,1722119444726,-506.26,0.00010958,2]
[333416588,1722119444735,-500.0,0.00010958,2]
[333416590,1722119444744,-500.0,0.00010958,2]